bitfinex/quotes_SOLUSD_20230702
["timestamp","ask_amount","ask_price","bid_price","bid_amount"]
[1688270663110,399.79992183,18.744,18.706,55.0]
[1688270663111,22.596,18.72,18.713,22.603]
[1688270663308,106.109,18.726,18.713,22.603]
[1688270663309,22.597,18.719,18.713,22.603]
[1688270664414,22.597,18.719,18.704,58.222]
[1688270664614,22.597,18.719,18.708,22.61]
[1688270665493,22.597,18.719,18.709,55.0]
[1688270665697,22.597,18.719,18.71,22.608]
[1688270665897,22.597,18.719,18.711,55.0]
[1688270666107,22.597,18.719,18.708,22.61]
[1688270666415,22.597,18.719,18.709,55.0]
[1688270667297,22.597,18.719,18.709,77.609]
[1688270668102,22.597,18.719,18.708,22.609]
[1688270668302,22.597,18.719,18.699,22.621]
[1688270668505,80.802,18.713,18.699,33.45819922]
[1688270669017,22.61,18.709,18.699,33.45819922]
[1688270669202,22.61,18.709,18.699,22.621]
[1688270670500,22.61,18.709,18.701,22.618]
[1688270670714,22.61,18.709,18.702,55.0]
[1688270670908,22.61,18.709,18.7,55.0]
[1688270671109,22.61,18.709,18.699,22.62]
[1688270671617,22.61,18.709,18.697,22.622]
[1688270672415,22.61,18.709,18.697,33.45919922]
[1688270672621,22.61,18.709,18.698,10.83719922]
[1688270672796,22.61,18.709,18.699,22.621]
[1688270673002,22.61,18.709,18.697,22.623]
[1688270673901,22.61,18.709,18.688,106.321]
[1688270673902,20.0,18.708,18.67,30.23]
[1688270674220,20.0,18.708,18.684,93.031]
[1688270674221,22.624,18.697,18.684,93.031]
[1688270674412,22.624,18.697,18.685,22.638]
[1688270674616,22.624,18.697,18.685,33.47519922]
[1688270675627,128.897,18.697,18.685,33.47519922]
[1688270675799,22.624,18.697,18.685,33.47519922]
[1688270676905,22.624,18.697,18.686,55.0]
[1688270677114,22.624,18.697,18.688,22.633]
[1688270677314,22.624,18.697,18.689,55.0]
[1688270677627,22.624,18.697,18.689,77.633]
[1688270677820,22.624,18.697,18.689,55.0]
[1688270678311,22.624,18.697,18.688,77.634]
[1688270679108,22.622,18.699,18.688,77.634]
[1688270679310,22.622,18.699,18.689,20.0]
[1688270679621,22.622,18.699,18.69,22.631]
[1688270679920,22.622,18.699,18.688,55.0]
[1688270680617,55.0,18.704,18.688,55.0]
[1688270680618,22.618,18.702,18.688,88.47119922]
[1688270681128,22.618,18.702,18.69,20.32]
[1688270681420,22.618,18.702,18.693,22.628]
[1688270681830,22.618,18.702,18.694,55.0]
[1688270682121,22.618,18.702,18.694,77.627]
[1688270683124,22.616,18.704,18.694,88.46419922]
[1688270683632,22.616,18.704,18.694,22.627]
[1688270685006,22.616,18.704,18.697,22.623]
[1688270686205,22.616,18.704,18.695,55.0]
[1688270686733,22.616,18.704,18.694,22.627]
[1688270687528,22.614,18.706,18.694,33.46419922]
[1688270687823,22.614,18.706,18.698,22.622]
[1688270688327,22.614,18.706,18.691,58.263]
[1688270688530,22.614,18.706,18.694,22.626]
[1688270688912,22.614,18.706,18.695,55.0]
[1688270689229,22.614,18.706,18.698,22.622]
[1688270689532,22.614,18.706,18.699,55.0]
[1688270689720,22.614,18.706,18.701,22.618]
[1688270690414,22.61,18.708,18.701,22.618]
[1688270691213,22.61,18.708,18.699,55.0]
[1688270692130,22.61,18.708,18.699,77.621]
[1688270693211,80.82,18.708,18.697,22.623]
[1688270693410,80.82,18.708,18.698,22.622]
[1688270694320,80.82,18.708,18.696,22.624]
[1688270695829,22.61,18.708,18.696,22.624]
[1688270698531,22.61,18.708,18.687,22.624]
[1688270698734,22.61,18.708,18.671,12.38955]
[1688270698735,75.0,18.707,18.686,58.276]
[1688270698940,80.852,18.701,18.688,22.633]
[1688270699239,22.619,18.701,18.688,22.633]
[1688270699439,22.615,18.705,18.69,20.37]
[1688270699626,22.615,18.705,18.694,80.878]
[1688270700127,22.615,18.705,18.698,22.622]
[1688270700722,22.615,18.705,18.691,262.3774]
[1688270700914,22.615,18.705,18.692,65.83719922]
[1688270701834,22.613,18.706,18.697,22.622]
[1688270702134,22.613,18.706,18.698,55.0]
[1688270702323,58.197,18.713,18.7,22.619]
[1688270702523,22.113,18.706,18.701,55.0]
[1688270702830,22.113,18.706,18.701,77.618]
[1688270703134,22.113,18.706,18.701,55.0]
[1688270703332,22.113,18.706,18.695,58.249]
[1688270703538,22.113,18.706,18.696,55.0]
[1688270704036,22.113,18.706,18.695,77.626]
[1688270704627,22.113,18.706,18.695,22.626]
[1688270705641,22.113,18.706,18.691,22.63]
[1688270705937,22.113,18.706,18.69,22.632]
[1688270705938,27.55017195,18.705,18.69,22.632]
[1688270706138,80.852,18.701,18.69,22.632]
[1688270706443,22.619,18.701,18.69,22.632]
[1688270707519,22.619,18.701,18.69,80.898]
[1688270707731,22.619,18.701,18.691,55.0]
[1688270708035,58.278,18.707,18.694,22.627]
[1688270708242,58.209,18.709,18.695,55.0]
[1688270708536,58.209,18.709,18.692,58.257]
[1688270708537,22.613,18.707,18.692,22.629]
[1688270708831,20.0,18.706,18.692,22.629]
[1688270709045,80.847,18.702,18.691,22.63]
[1688270709538,80.847,18.702,18.692,55.0]
[1688270709734,80.847,18.702,18.692,77.629]
[1688270710037,22.618,18.702,18.692,77.629]
[1688270713345,106.186,18.713,18.692,77.629]
[1688270713528,22.613,18.706,18.692,88.46619922]
[1688270713842,22.613,18.706,18.696,22.624]
[1688270714038,22.613,18.706,18.699,22.62]
[1688270714229,22.613,18.706,18.701,22.618]
[1688270714629,22.613,18.706,18.702,55.0]
[1688270715832,22.613,18.706,18.702,77.617]
[1688270716038,22.613,18.706,18.702,55.0]
[1688270716347,22.613,18.706,18.699,22.621]
[1688270717434,58.194,18.714,18.699,22.621]
[1688270717643,20.0,18.713,18.7,55.0]
[1688270717943,22.608,18.71,18.702,22.617]
[1688270718123,22.608,18.71,18.703,77.616]
[1688270718326,22.608,18.71,18.703,22.616]
[1688270718519,22.608,18.71,18.704,55.0]
[1688270719524,22.608,18.71,18.704,77.615]
[1688270723551,58.194,18.719,18.704,77.615]
[1688270723552,58.182,18.717,18.704,77.615]
[1688270723730,22.604,18.714,18.704,77.615]
[1688270724048,106.147,18.72,18.704,77.615]
[1688270724049,22.602,18.716,18.704,77.615]
[1688270724352,171.83717195,18.724,18.704,77.615]
[1688270724651,20.0,18.723,18.704,88.45219922]
[1688270724947,22.596,18.72,18.704,88.45219922]
[1688270725131,22.596,18.72,18.705,98.812]
[1688270725446,22.596,18.72,18.709,22.608]
[1688270728557,22.596,18.72,18.71,55.0]
[1688270728850,22.596,18.72,18.712,22.605]
[1688270729237,22.596,18.72,18.713,55.0]
[1688270729553,22.596,18.72,18.713,77.604]
[1688270735253,22.596,18.72,18.705,98.812]
[1688270735552,22.596,18.72,18.705,121.426]
[1688270737858,22.596,18.72,18.706,55.0]
[1688270738043,22.596,18.72,18.708,22.61]
[1688270738240,22.596,18.72,18.709,55.0]
[1688270738738,22.596,18.72,18.708,22.61]
[1688270738943,22.596,18.72,18.706,22.612]
[1688270739143,22.596,18.72,18.707,55.0]
[1688270739553,22.596,18.72,18.707,77.611]
[1688270740143,63.316,18.72,18.7,22.62]
[1688270740342,63.316,18.72,18.697,98.2222]
[1688270740343,70.86617195,18.72,18.697,98.2222]
[1688270740542,62.55017195,18.719,18.696,10.83719922]
[1688270740767,186.984,18.713,18.698,22.622]
[1688270740952,20.0,18.712,18.698,22.622]
[1688270741260,22.61,18.708,18.698,22.622]
[1688270741439,22.61,18.708,18.701,22.618]
[1688270741639,22.61,18.708,18.702,55.0]
[1688270742336,22.61,18.708,18.689,58.269]
[1688270742549,22.61,18.708,18.686,106.332]
[1688270742752,22.61,18.708,18.692,10.83719922]
[1688270742958,22.61,18.708,18.693,120.8502]
[1688270743144,22.61,18.708,18.693,22.628]
[1688270743659,22.61,18.708,18.693,33.46519922]
[1688270743960,22.61,18.708,18.697,22.623]
[1688270744453,22.61,18.708,18.698,55.0]
[1688270744662,22.608,18.71,18.701,22.619]
[1688270744848,22.608,18.71,18.702,55.0]
[1688270745154,22.608,18.71,18.704,22.614]
[1688270745836,20.0,18.712,18.704,22.614]
[1688270745837,22.606,18.712,18.704,22.614]
[1688270746042,58.176,18.719,18.709,22.609]
[1688270746451,22.602,18.715,18.707,22.61]
[1688270746661,22.602,18.715,18.708,22.61]
[1688270747862,55.0,18.722,18.708,22.61]
[1688270748163,22.595,18.721,18.713,22.603]
[1688270748552,22.595,18.721,18.709,55.0]
[1688270748961,22.595,18.721,18.709,77.608]
[1688270749544,22.595,18.721,18.707,22.61]
[1688270749743,20.29,18.72,18.706,22.612]
[1688270749958,22.603,18.715,18.708,22.61]
[1688270752568,22.603,18.715,18.707,55.0]
[1688270752768,22.603,18.715,18.698,58.238]
[1688270752954,20.0,18.714,18.698,58.238]
[1688270753153,22.609,18.71,18.698,22.621]
[1688270753352,22.609,18.71,18.697,91.6385]
[1688270753664,22.609,18.71,18.698,22.622]
[1688270754065,22.609,18.71,18.699,55.0]
[1688270754269,22.609,18.71,18.701,22.618]
[1688270754966,22.609,18.71,18.695,10.83719922]
[1688270755156,22.609,18.71,18.692,58.258]
[1688270755361,43.019,18.71,18.689,58.268]
[1688270755665,43.019,18.71,18.696,22.625]
[1688270758669,43.019,18.71,18.696,19.125]
[1688270759059,43.019,18.71,18.691,10.83719922]
[1688270759259,43.019,18.71,18.692,55.0]
[1688270759656,43.019,18.71,18.692,65.83719922]
[1688270759975,43.019,18.71,18.696,22.624]
[1688270760873,20.0,18.709,18.688,150.4841]
[1688270761053,80.843,18.703,18.692,22.628]
[1688270761366,80.843,18.703,18.69,22.632]
[1688270761367,20.0,18.702,18.69,22.632]
[1688270761566,22.622,18.699,18.69,22.632]
[1688270761973,22.62,18.701,18.69,33.46919922]
[1688270762155,43.82673101,18.718,18.691,55.0]
[1688270762463,22.611,18.708,18.698,22.622]
[1688270763050,22.611,18.708,18.692,92.2131]
[1688270763051,22.611,18.708,18.696,22.624]
[1688270763255,22.611,18.708,18.697,55.0]
[1688270763450,22.611,18.708,18.696,22.624]
[1688270763647,22.611,18.708,18.691,10.83719922]
[1688270763851,22.611,18.708,18.687,149.9285]
[1688270764052,80.849,18.702,18.691,22.63]
[1688270765061,22.618,18.702,18.691,22.63]
[1688270765451,22.618,18.702,18.692,55.0]
[1688270765662,22.618,18.702,18.694,22.627]
[1688270765863,22.618,18.702,18.695,55.0]
[1688270766869,22.618,18.702,18.693,22.627]
[1688270767077,22.618,18.702,18.691,22.63]
[1688270767262,22.618,18.702,18.689,22.633]
[1688270767463,22.618,18.702,18.69,55.0]
[1688270767660,22.618,18.702,18.69,77.632]
[1688270770790,22.618,18.702,18.69,55.0]
[1688270771081,20.43,18.7,18.684,98.6349]
[1688270771260,187.159,18.696,18.684,98.6349]
[1688270771459,187.159,18.696,18.683,10.83719922]
[1688270772676,186.659,18.696,18.684,22.639]
[1688270773390,80.376,18.696,18.684,22.639]
[1688270773681,22.126,18.696,18.684,33.47619922]
[1688270773862,22.126,18.696,18.685,65.83719922]
[1688270774062,22.126,18.696,18.688,22.634]
[1688270774872,22.126,18.696,18.666,387.73305404]
[1688270774873,20.0,18.695,18.666,387.73305404]
[1688270775072,80.913,18.687,18.667,20.0]
[1688270775287,80.913,18.687,18.666,26.67099304]
[1688270775485,80.913,18.687,18.654,387.98248026]
[1688270775486,20.41,18.68,18.658,106.49]
[1688270775690,187.374,18.674,18.655,154.9183]
[1688270775979,22.652,18.674,18.659,22.668]
[1688270776366,129.056,18.674,18.659,22.668]
[1688270776869,129.056,18.674,18.66,20.0]
[1688270777178,129.056,18.674,18.664,22.663]
[1688270777179,22.652,18.674,18.664,22.663]
[1688270778364,22.652,18.674,18.662,22.665]
[1688270780071,22.652,18.674,18.666,22.661]
[1688270781182,22.652,18.674,18.66,20.0]
[1688270781388,22.652,18.674,18.65,70.56323504]
[1688270781389,20.29,18.67,18.656,22.673]
[1688270781568,22.661,18.666,18.656,22.673]
[1688270781770,22.657,18.67,18.656,22.673]
[1688270781967,22.655,18.672,18.657,20.0]
[1688270782167,22.655,18.672,18.661,22.666]
[1688270782469,22.644,18.681,18.661,22.666]
[1688270782669,22.644,18.681,18.662,10.83719922]
[1688270782879,22.644,18.681,18.663,20.0]
[1688270783185,22.644,18.681,18.668,22.658]
[1688270783366,22.644,18.681,18.669,20.0]
[1688270783570,22.644,18.681,18.671,22.654]
[1688270783786,20.3,18.68,18.669,22.657]
[1688270783985,22.648,18.677,18.669,22.657]
[1688270784167,58.282,18.685,18.669,80.988]
[1688270784366,58.258,18.693,18.67,65.83719922]
[1688270784570,22.636,18.688,18.676,80.959]
[1688270784771,22.636,18.688,18.676,22.649]
[1688270788285,30.18617195,18.688,18.676,22.649]
[1688270788477,7.55017195,18.687,18.673,22.651]
[1688270788672,22.641,18.683,18.673,22.651]
[1688270788872,22.641,18.683,18.67,22.656]
[1688270789690,22.641,18.683,18.671,55.0]
[1688270789882,20.0,18.682,18.665,69.17919922]
[1688270790090,22.648,18.677,18.671,22.655]
[1688270790391,22.648,18.677,18.671,22.654]
[1688270791185,22.648,18.677,18.666,55.0]
[1688270791698,22.648,18.677,18.665,157.0654]
[1688270791879,22.648,18.677,18.67,22.656]
[1688270792073,22.648,18.677,18.665,157.0654]
[1688270792378,22.648,18.677,18.668,22.657]
[1688270793180,22.648,18.677,18.666,22.66]
[1688270793891,78.294,18.682,18.667,55.0]
[1688270794190,22.646,18.679,18.671,22.654]
[1688270794892,22.646,18.679,18.667,55.0]
[1688270795099,22.646,18.679,18.662,10.83719922]
[1688270795397,22.646,18.679,18.663,55.0]
[1688270795697,22.646,18.679,18.663,150.4446]
[1688270795881,22.646,18.679,18.662,10.83719922]
[1688270796288,30.17611081,18.679,18.655,58.374]
[1688270796496,82.53011081,18.678,18.655,58.374]
[1688270796704,80.98,18.672,18.66,22.668]
[1688270798000,80.98,18.672,18.661,55.0]
[1688270798309,22.655,18.672,18.664,22.663]
[1688270798891,22.655,18.672,18.659,10.83719922]
[1688270799095,22.655,18.672,18.66,77.668]
[1688270800488,22.655,18.672,18.659,10.83719922]
[1688270800681,22.655,18.672,18.652,95.4446]
[1688270801004,22.655,18.672,18.656,10.83719922]
[1688270801298,22.655,18.672,18.658,22.67]
[1688270802001,22.655,18.672,18.659,55.0]
[1688270802903,22.655,18.672,18.659,77.669]
[1688270803785,22.655,18.672,18.652,95.4446]
[1688270803988,30.18511081,18.672,18.652,95.4446]
[1688270804183,30.18511081,18.672,18.652,106.28179922]
[1688270804708,30.18511081,18.672,18.652,10.83719922]
[1688270804898,55.0,18.671,18.652,33.51419922]
[1688270805089,187.459,18.666,18.652,33.51419922]
[1688270805593,187.459,18.666,18.646,22.684]
[1688270805594,194.98911081,18.666,18.646,22.684]
[1688270805789,194.98911081,18.666,18.64,40.76]
[1688270805790,20.0,18.665,18.644,10.83719922]
[1688270806106,187.525,18.659,18.645,22.686]
[1688270806302,187.525,18.659,18.644,10.33719922]
[1688270806487,187.525,18.659,18.643,22.688]
[1688270807606,187.525,18.659,18.648,22.682]
[1688270808186,187.525,18.659,18.644,65.83719922]
[1688270808402,187.525,18.659,18.644,10.83719922]
[1688270808783,187.525,18.659,18.644,33.52419922]
[1688270809400,22.67,18.659,18.644,33.52419922]
[1688270809911,22.67,18.659,18.649,22.681]
[1688270810112,22.67,18.659,18.65,55.0]
[1688270810292,22.67,18.659,18.651,22.678]
[1688270810605,81.033,18.659,18.649,22.68]
[1688270811301,22.67,18.659,18.652,22.677]
[1688270811506,22.67,18.659,18.65,77.68]
[1688270811707,22.67,18.659,18.65,55.0]
[1688270811905,22.67,18.659,18.647,22.684]
[1688270812121,22.67,18.659,18.644,10.83719922]
[1688270812411,22.67,18.659,18.63,40.28]
[1688270812412,75.0,18.658,18.631,85.8073]
[1688270812616,75.0,18.658,18.639,22.694]
[1688270812617,81.072,18.65,18.639,22.694]
[1688270812904,81.072,18.65,18.632,58.446]
[1688270813205,108.95798875,18.65,18.632,22.702]
[1688270813403,187.677,18.644,18.631,84.3073]
[1688270813586,187.677,18.644,18.623,58.473]
[1688270813789,187.677,18.644,18.624,20.0]
[1688270813986,187.677,18.644,18.62,147.742]
[1688270813987,55.0,18.643,18.62,20.43]
[1688270814207,55.0,18.643,18.626,22.709]
[1688270814208,81.13,18.637,18.626,22.709]
[1688270814400,22.697,18.637,18.626,22.709]
[1688270818500,22.697,18.637,18.625,22.71]
[1688270819610,22.697,18.637,18.625,81.179]
[1688270820320,22.692,18.641,18.625,92.01619922]
[1688270820516,22.692,18.641,18.63,20.41]
[1688270820816,22.692,18.641,18.633,22.701]
[1688270821717,22.692,18.641,18.621,27.11544958]
[1688270821916,129.284,18.641,18.621,58.482]
[1688270822216,169.994,18.641,18.621,58.482]
[1688270822405,22.7,18.635,18.625,22.71]
[1688270822802,81.138,18.635,18.625,22.71]
[1688270823003,81.138,18.635,18.6,48.0]
[1688270823004,7.59598875,18.624,18.6,48.0]
[1688270823203,40.73,18.62,18.6,48.0]
[1688270823410,187.975,18.614,18.591,58.573]
[1688270823610,187.975,18.614,18.597,22.744]
[1688270823611,22.724,18.614,18.597,22.744]
[1688270824217,22.724,18.614,18.59,20.28]
[1688270824407,22.724,18.614,18.596,22.746]
[1688270826102,10.33,18.61,18.587,58.586]
[1688270826303,10.33,18.61,18.573,28.09318995]
[1688270826304,188.085,18.604,18.573,28.09318995]
[1688270826529,55.0,18.603,18.582,22.763]
[1688270826718,81.303,18.597,18.582,22.763]
[1688270827022,22.745,18.597,18.582,22.763]
[1688270827329,58.613,18.603,18.582,22.763]
[1688270827504,10.33,18.62,18.59,3.0]
[1688270827700,22.727,18.612,18.599,188.127]
[1688270828202,22.727,18.612,18.599,22.743]
[1688270828407,10.32,18.61,18.59,116.578]
[1688270828708,22.737,18.604,18.593,22.749]
[1688270829409,20.0,18.603,18.584,58.595]
[1688270829620,20.0,18.603,18.588,22.756]
[1688270829621,22.745,18.598,18.588,22.756]
[1688270829826,344.445,18.598,18.563,28.10815951]
[1688270830012,75.0,18.597,18.574,22.772]
[1688270830211,75.0,18.597,18.572,22.775]
[1688270830212,10.33,18.59,18.572,22.775]
[1688270830410,22.76,18.585,18.572,22.775]
[1688270831426,22.76,18.585,18.572,22.275]
[1688270831612,81.355,18.585,18.57,22.777]
[1688270831810,22.76,18.585,18.571,22.776]
[1688270832131,88.559583,18.59,18.571,22.776]
[1688270832309,10.33,18.61,18.571,22.776]
[1688270832310,22.748,18.595,18.571,22.776]
[1688270832509,22.748,18.595,18.571,118.3098]
[1688270832910,22.748,18.595,18.572,75.0]
[1688270833224,22.748,18.595,18.578,188.332]
[1688270833532,22.748,18.595,18.579,55.0]
[1688270833711,10.42,18.62,18.583,188.283]
[1688270834023,10.42,18.62,18.591,81.327]
[1688270834024,22.731,18.609,18.591,81.327]
[1688270834528,22.731,18.609,18.592,55.0]
[1688270834722,22.731,18.609,18.597,22.745]
[1688270835325,22.731,18.609,18.592,93.1113]
[1688270835722,81.247,18.609,18.592,93.1113]
[1688270835924,81.247,18.609,18.587,58.587]
[1688270836111,81.247,18.609,18.588,20.0]
[1688270836520,81.247,18.609,18.592,22.751]
[1688270837026,58.504,18.614,18.592,22.751]
[1688270837027,22.729,18.611,18.592,22.751]
[1688270837208,58.495,18.617,18.599,22.742]
[1688270837413,22.728,18.611,18.605,22.735]
[1688270838038,68.879,18.619,18.605,22.734]
[1688270838360,58.478,18.623,18.605,22.734]
[1688270838361,22.72,18.618,18.605,22.734]
[1688270838516,22.72,18.618,18.603,165.341]
[1688270838517,22.72,18.618,18.609,22.73]
[1688270838828,22.72,18.618,18.606,55.0]
[1688270839035,22.72,18.618,18.606,54.5]
[1688270839234,98.3489,18.629,18.609,81.25]
[1688270839235,58.463,18.627,18.609,81.25]
[1688270839431,81.199,18.623,18.609,22.73]
[1688270839810,81.199,18.623,18.607,22.732]
[1688270840124,81.199,18.623,18.598,58.552]
[1688270840322,10.33,18.62,18.599,22.742]
[1688270840522,187.979,18.614,18.599,22.742]
[1688270840927,22.725,18.614,18.599,22.742]
[1688270845335,81.251,18.609,18.592,106.868]
[1688270846132,81.251,18.609,18.597,22.745]
[1688270846322,22.731,18.609,18.597,22.745]
[1688270846634,22.731,18.609,18.595,106.853]
[1688270846635,22.729,18.61,18.6,58.548]
[1688270846826,22.729,18.61,18.595,106.853]
[1688270846827,22.729,18.61,18.603,22.737]
[1688270847638,22.728,18.612,18.603,22.737]
[1688270849032,58.495,18.617,18.603,81.275]
[1688270850441,27.90627224,18.68,18.603,81.275]
[1688270850442,10.43,18.64,18.603,81.275]
[1688270850629,22.706,18.629,18.604,55.0]
[1688270850832,22.706,18.629,18.614,22.723]
[1688270851217,22.706,18.629,18.606,106.788]
[1688270851529,22.706,18.629,18.608,22.73]
[1688270851530,81.16,18.629,18.608,22.73]
[1688270851840,20.0,18.628,18.608,22.73]
[1688270852031,20.0,18.628,18.601,106.817]
[1688270852032,187.895,18.622,18.605,22.735]
[1688270852240,10.33,18.62,18.606,22.733]
[1688270852435,81.22,18.616,18.606,22.733]
[1688270852737,22.722,18.616,18.606,22.733]
[1688270853236,22.722,18.616,18.604,22.735]
[1688270853626,22.722,18.616,18.604,22.736]
[1688270854334,22.72,18.618,18.604,22.736]
[1688270854520,22.722,18.616,18.61,22.728]
[1688270854939,22.722,18.616,18.602,58.54]
[1688270855242,22.722,18.616,18.607,22.732]
[1688270857242,58.473,18.624,18.607,22.732]
[1688270857444,22.716,18.621,18.608,55.0]
[1688270857641,22.716,18.621,18.611,81.24]
[1688270858237,22.716,18.621,18.611,22.727]
[1688270859126,22.716,18.621,18.605,58.531]
[1688270859336,22.716,18.621,18.61,22.729]
[1688270860633,91.1926,18.636,18.61,81.245]
[1688270860839,22.713,18.624,18.61,81.245]
[1688270861027,22.713,18.624,18.614,22.723]
[1688270863353,20.0,18.623,18.605,58.529]
[1688270863547,20.0,18.623,18.602,106.81]
[1688270863548,22.72,18.618,18.608,22.731]
[1688270864434,22.72,18.618,18.601,99.8283]
[1688270864734,22.72,18.618,18.603,22.737]
[1688270864935,22.726,18.613,18.599,22.742]
[1688270865735,22.726,18.613,18.597,22.744]
[1688270865933,55.0,18.619,18.589,106.888]
[1688270865934,81.273,18.604,18.589,22.754]
[1688270866539,22.735,18.606,18.59,10.3]
[1688270866755,58.585,18.609,18.595,81.308]
[1688270866945,58.585,18.609,18.59,10.3]
[1688270866946,198.7492,18.622,18.599,188.118]
[1688270867142,22.719,18.619,18.608,81.254]
[1688270867342,22.719,18.619,18.612,22.727]
[1688270867938,22.717,18.62,18.612,22.727]
[1688270868135,22.715,18.622,18.612,22.727]
[1688270868333,58.458,18.629,18.612,22.727]
[1688270868760,58.467,18.628,18.612,22.727]
[1688270869064,22.71,18.626,18.612,22.727]
[1688270871352,22.71,18.626,18.613,55.0]
[1688270871649,22.71,18.626,18.616,22.721]
[1688270872043,22.71,18.626,18.61,109.1897]
[1688270872044,22.71,18.626,18.614,22.723]
[1688270873962,22.71,18.626,18.612,22.727]
[1688270874151,22.71,18.626,18.61,98.8597]
[1688270874360,55.0,18.625,18.6,68.827]
[1688270874556,81.212,18.618,18.602,58.539]
[1688270874869,81.212,18.618,18.603,20.0]
[1688270875448,81.212,18.618,18.606,22.733]
[1688270875650,81.212,18.618,18.604,58.533]
[1688270875651,22.72,18.618,18.61,22.729]
[1688270875863,58.539,18.623,18.61,22.729]
[1688270876059,22.718,18.62,18.61,22.729]
[1688270876568,22.718,18.62,18.608,22.731]
[1688270876858,81.188,18.62,18.608,22.731]
[1688270877162,81.188,18.62,18.605,99.9977]
[1688270877346,81.188,18.62,18.601,58.544]
[1688270877946,81.188,18.62,18.602,55.0]
[1688270878845,81.188,18.62,18.607,22.732]
[1688270879050,81.188,18.62,18.601,90.9212]
[1688270879245,81.224,18.615,18.601,90.9212]
[1688270879566,188.047,18.607,18.58,10.33]
[1688270879764,188.047,18.607,18.581,58.607]
[1688270879969,188.047,18.607,18.578,106.949]
[1688270879970,75.0,18.606,18.576,21.534025]
[1688270880161,75.0,18.606,18.578,22.768]
[1688270880162,188.147,18.597,18.578,22.768]
[1688270880464,188.147,18.597,18.571,91.1363]
[1688270880465,188.147,18.597,18.574,22.773]
[1688270880664,188.222,18.59,18.574,22.773]